[Event "*** Titled Tuesday Blitz"]
[Site "Chess.com"]
[Date "2020.12.29"]
[Round "4"]
[White "PlotnikovPavel"]
[Black "Vusatiuk_Vladimir"]
[Result "0-1"]
[WhiteElo "2435"]
[BlackElo "2304"]
[TimeControl "180+1"]
[EndTime "10:40:38 PST"]
[Termination "Vusatiuk_Vladimir won on time"]

1. e4 {[%clk 0:03:00.9]} 1... c5 {[%clk 0:03:00]} 2. c3 {[%clk 0:03:00]} 2...
Nf6 {[%clk 0:03:00.1]} 3. e5 {[%clk 0:03:00.1]} 3... Nd5 {[%clk 0:03:00.4]} 4.
d4 {[%clk 0:03:01]} 4... cxd4 {[%clk 0:03:01.3]} 5. Qxd4 {[%clk 0:03:01.6]} 5...
e6 {[%clk 0:02:57.3]} 6. Bd3 {[%clk 0:03:01.5]} 6... d6 {[%clk 0:02:56.3]} 7.
exd6 {[%clk 0:03:01.5]} 7... Bxd6 {[%clk 0:02:56.9]} 8. Nf3 {[%clk 0:03:00.1]}
8... Nc6 {[%clk 0:02:57]} 9. Qe4 {[%clk 0:03:00.3]} 9... h6 {[%clk 0:02:53.4]}
10. O-O {[%clk 0:02:57.9]} 10... Nf6 {[%clk 0:02:53.5]} 11. Qe2 {[%clk
0:02:57.4]} 11... O-O {[%clk 0:02:52.6]} 12. Rd1 {[%clk 0:02:56.5]} 12... Qc7
{[%clk 0:02:51]} 13. a4 {[%clk 0:02:45.8]} 13... e5 {[%clk 0:02:41.5]} 14. Nbd2
{[%clk 0:02:41.7]} 14... Re8 {[%clk 0:02:38.9]} 15. Ne4 {[%clk 0:02:20]} 15...
Nxe4 {[%clk 0:02:37]} 16. Qxe4 {[%clk 0:02:17.4]} 16... f5 {[%clk 0:02:30.6]}
17. Bc4+ {[%clk 0:02:17.2]} 17... Kh7 {[%clk 0:02:00.5]} 18. Qh4 {[%clk
0:02:07.7]} 18... Be7 {[%clk 0:01:46.5]} 19. Ng5+ {[%clk 0:01:46]} 19... Bxg5
{[%clk 0:01:37]} 20. Bxg5 {[%clk 0:01:46.9]} 20... Be6 {[%clk 0:01:28.5]} 21.
Bd3 {[%clk 0:01:38.8]} 21... Kg8 {[%clk 0:01:19.7]} 22. Be3 {[%clk 0:01:33]}
22... Rad8 {[%clk 0:01:13.5]} 23. Bc2 {[%clk 0:01:30.4]} 23... b6 {[%clk
0:01:03.5]} 24. f4 {[%clk 0:01:19.9]} 24... e4 {[%clk 0:00:59.1]} 25. Qf2 {[%clk
0:01:14.8]} 25... Rxd1+ {[%clk 0:00:49.6]} 26. Rxd1 {[%clk 0:01:14.1]} 26... Rd8
{[%clk 0:00:50.5]} 27. Rxd8+ {[%clk 0:01:12.2]} 27... Qxd8 {[%clk 0:00:51.4]}
28. Qd2 {[%clk 0:01:12.4]} 28... Qe7 {[%clk 0:00:35]} 29. Bd1 {[%clk 0:00:53.2]}
29... Na5 {[%clk 0:00:32.8]} 30. Qd4 {[%clk 0:00:47]} 30... Nc6 {[%clk
0:00:31.2]} 31. Qd2 {[%clk 0:00:39.3]} 31... Na5 {[%clk 0:00:31.6]} 32. Bd4
{[%clk 0:00:33.4]} 32... Nc4 {[%clk 0:00:25.4]} 33. Qe2 {[%clk 0:00:31.6]} 33...
Nd6 {[%clk 0:00:16.1]} 34. Be3 {[%clk 0:00:27]} 34... Bc4 {[%clk 0:00:15.9]} 35.
Qd2 {[%clk 0:00:25.4]} 35... Bd3 {[%clk 0:00:16.5]} 36. Bb3+ {[%clk 0:00:23.4]}
36... Kh7 {[%clk 0:00:16.9]} 37. h3 {[%clk 0:00:17.7]} 37... Qh4 {[%clk
0:00:16.6]} 38. Kh2 {[%clk 0:00:16.6]} 38... Qd8 {[%clk 0:00:12.2]} 39. Bd4
{[%clk 0:00:16.1]} 39... Qc7 {[%clk 0:00:10.2]} 40. Qe3 {[%clk 0:00:15.9]} 40...
g5 {[%clk 0:00:09.5]} 41. Be5 {[%clk 0:00:15.1]} 41... Qe7 {[%clk 0:00:08]} 42.
Qd4 {[%clk 0:00:11.4]} 42... Nf7 {[%clk 0:00:05.3]} 43. Bf6 {[%clk 0:00:11]}
43... Qc7 {[%clk 0:00:03.9]} 44. Qb4 {[%clk 0:00:06.7]} 44... Qxf4+ {[%clk
0:00:02.9]} 45. Kh1 {[%clk 0:00:05]} 45... Qf1+ {[%clk 0:00:03.3]} 46. Kh2
{[%clk 0:00:05.3]} 46... Qf4+ {[%clk 0:00:04.2]} 47. Kg1 {[%clk 0:00:04.1]}
47... e3 {[%clk 0:00:04.4]} 48. Qxf4 {[%clk 0:00:03.5]} 48... gxf4 {[%clk
0:00:04.5]} 49. Bxf7 {[%clk 0:00:03.1]} 49... Bc2 {[%clk 0:00:02.5]} 50. Bh4
{[%clk 0:00:03.1]} 50... Bxa4 {[%clk 0:00:02.6]} 51. Bc4 {[%clk 0:00:03.2]}
51... Kg7 {[%clk 0:00:03.5]} 52. Be2 {[%clk 0:00:03.7]} 52... Bc6 {[%clk
0:00:03.1]} 53. Be1 {[%clk 0:00:04]} 53... Kf6 {[%clk 0:00:03.2]} 54. Bf3 {[%clk
0:00:04.9]} 54... Bb5 {[%clk 0:00:03.4]} 55. Bb7 {[%clk 0:00:03.8]} 55... Ke5
{[%clk 0:00:03.6]} 56. Bf3 {[%clk 0:00:04.1]} 56... a5 {[%clk 0:00:03.9]} 57. b3
{[%clk 0:00:04.3]} 57... Bd3 {[%clk 0:00:04]} 58. c4 {[%clk 0:00:04.1]} 58...
Bc2 {[%clk 0:00:04.1]} 59. Bc3+ {[%clk 0:00:04.4]} 59... Ke6 {[%clk 0:00:04]}
60. Bd5+ {[%clk 0:00:04.9]} 60... Kd6 {[%clk 0:00:04.5]} 61. Bg7 {[%clk
0:00:05.3]} 61... Bxb3 {[%clk 0:00:03.7]} 62. Bxh6 {[%clk 0:00:05]} 62... b5
{[%clk 0:00:04.2]} 63. Bxf4+ {[%clk 0:00:05.4]} 63... Kc5 {[%clk 0:00:03.8]} 64.
Bxe3+ {[%clk 0:00:05.9]} 64... Kd6 {[%clk 0:00:04.4]} 65. Bf4+ {[%clk
0:00:05.4]} 65... Kc5 {[%clk 0:00:04.5]} 66. Be3+ {[%clk 0:00:04.6]} 66... Kd6
{[%clk 0:00:04.9]} 67. g4 {[%clk 0:00:02.7]} 67... fxg4 {[%clk 0:00:04.8]} 68.
hxg4 {[%clk 0:00:02.8]} 68... a4 {[%clk 0:00:05.4]} 69. Bg8 {[%clk 0:00:02.2]}
69... a3 {[%clk 0:00:05.4]} 70. Bd4 {[%clk 0:00:02]} 70... bxc4 {[%clk 0:00:04]}
0-1

[Event "*** Titled Tuesday Blitz"]
[Site "Chess.com"]
[Date "2020.12.29"]
[Round "4"]
[White "Korchmar_Vasiliy"]
[Black "alexg2003"]
[Result "1-0"]
[WhiteElo "2570"]
[BlackElo "2391"]
[TimeControl "180+1"]
[EndTime "10:40:39 PST"]
[Termination "Korchmar_Vasiliy won by resignation"]

1. e4 {[%clk 0:03:00.9]} 1... e6 {[%clk 0:02:58.9]} 2. d4 {[%clk 0:03:00.5]}
2... d5 {[%clk 0:02:59.4]} 3. exd5 {[%clk 0:03:00.9]} 3... exd5 {[%clk
0:02:59.4]} 4. Nf3 {[%clk 0:03:01.5]} 4... Bd6 {[%clk 0:02:54.4]} 5. Bd3 {[%clk
0:02:56.8]} 5... Ne7 {[%clk 0:02:54.5]} 6. O-O {[%clk 0:02:53.6]} 6... O-O
{[%clk 0:02:47.1]} 7. Nc3 {[%clk 0:02:33.7]} 7... c6 {[%clk 0:02:46.3]} 8. Re1
{[%clk 0:02:30]} 8... Bf5 {[%clk 0:02:29.6]} 9. Bxf5 {[%clk 0:02:29.4]} 9...
Nxf5 {[%clk 0:02:29.4]} 10. Ne5 {[%clk 0:02:29.9]} 10... f6 {[%clk 0:02:27.1]}
11. Nf3 {[%clk 0:02:19.3]} 11... Nd7 {[%clk 0:02:24.9]} 12. Qd3 {[%clk
0:02:19.7]} 12... Ne7 {[%clk 0:02:23.1]} 13. Ne2 {[%clk 0:02:19.5]} 13... Ng6
{[%clk 0:02:23.2]} 14. Ng3 {[%clk 0:02:17.8]} 14... Re8 {[%clk 0:02:09.4]} 15.
Bd2 {[%clk 0:02:16.6]} 15... Bxg3 {[%clk 0:02:05.2]} 16. hxg3 {[%clk 0:02:15.3]}
16... Ndf8 {[%clk 0:02:04.5]} 17. g4 {[%clk 0:02:06.4]} 17... Ne6 {[%clk
0:01:58.4]} 18. g3 {[%clk 0:02:02.8]} 18... Qb6 {[%clk 0:01:40.7]} 19. Kg2
{[%clk 0:02:01.3]} 19... Nef8 {[%clk 0:01:35.9]} 20. c4 {[%clk 0:01:54.8]} 20...
Rxe1 {[%clk 0:01:29.4]} 21. Rxe1 {[%clk 0:01:55.7]} 21... Qxb2 {[%clk
0:01:29.3]} 22. cxd5 {[%clk 0:01:52.4]} 22... Qxa2 {[%clk 0:01:22]} 23. dxc6
{[%clk 0:01:43.7]} 23... bxc6 {[%clk 0:01:21.8]} 24. g5 {[%clk 0:01:44.1]} 24...
fxg5 {[%clk 0:01:18.3]} 25. Bxg5 {[%clk 0:01:38.5]} 25... Qd5 {[%clk 0:01:15.8]}
26. Rc1 {[%clk 0:01:39]} 26... Ne6 {[%clk 0:01:12.2]} 27. Be3 {[%clk 0:01:39.3]}
27... Rf8 {[%clk 0:01:10.6]} 28. Qe2 {[%clk 0:01:37.8]} 28... Re8 {[%clk
0:01:02.7]} 29. Qc4 {[%clk 0:01:35.6]} 29... Ne7 {[%clk 0:00:41.7]} 30. Qxd5
{[%clk 0:01:15.2]} 30... cxd5 {[%clk 0:00:41.6]} 31. Rb1 {[%clk 0:01:15.7]}
31... Nd8 {[%clk 0:00:34.5]} 32. Rb8 {[%clk 0:01:11.5]} 32... Nec6 {[%clk
0:00:31.9]} 33. Ra8 {[%clk 0:01:11.8]} 33... Kf8 {[%clk 0:00:24.6]} 34. Rc8
{[%clk 0:01:01.4]} 34... Ne7 {[%clk 0:00:20.7]} 35. Rc7 {[%clk 0:00:59.4]} 35...
Ndc6 {[%clk 0:00:20.3]} 36. Ne5 {[%clk 0:00:56.2]} 36... Nxe5 {[%clk 0:00:18.3]}
37. dxe5 {[%clk 0:00:57.1]} 37... a5 {[%clk 0:00:18.4]} 38. Bc5 {[%clk
0:00:57.1]} 38... Kf7 {[%clk 0:00:17.8]} 39. f4 {[%clk 0:00:42]} 39... Ke6
{[%clk 0:00:17.7]} 40. Ra7 {[%clk 0:00:41]} 40... Nc6 {[%clk 0:00:15.3]} 41.
Rxg7 {[%clk 0:00:40.9]} 41... h5 {[%clk 0:00:13.4]} 42. Rh7 {[%clk 0:00:38.5]}
42... d4 {[%clk 0:00:13.4]} 43. Kf3 {[%clk 0:00:32.9]} 43... Kd5 {[%clk
0:00:13.9]} 44. Ba3 {[%clk 0:00:33.1]} 44... Rb8 {[%clk 0:00:11.7]} 45. Rd7+
{[%clk 0:00:29.5]} 45... Kc4 {[%clk 0:00:11.7]} 46. Ke4 {[%clk 0:00:30.3]} 46...
Rb3 {[%clk 0:00:11.4]} 47. Bf8 {[%clk 0:00:21]} 47... Re3+ {[%clk 0:00:11]} 48.
Kf5 {[%clk 0:00:21.1]} 48... Rxg3 {[%clk 0:00:11.2]} 49. e6 {[%clk 0:00:21.6]}
49... d3 {[%clk 0:00:10.7]} 50. Rc7 {[%clk 0:00:21.6]} 50... Kd5 {[%clk
0:00:10.4]} 51. Rd7+ {[%clk 0:00:21.5]} 51... Kc4 {[%clk 0:00:10.1]} 52. Rc7
{[%clk 0:00:15.9]} 52... Kb5 {[%clk 0:00:10.3]} 53. e7 {[%clk 0:00:10.2]} 53...
Re3 {[%clk 0:00:08.6]} 54. Kf6 {[%clk 0:00:06.5]} 54... d2 {[%clk 0:00:08.5]}
55. Rd7 {[%clk 0:00:06.7]} 55... Re2 {[%clk 0:00:08.5]} 56. Rxd2 {[%clk
0:00:06]} 56... Re4 {[%clk 0:00:06.9]} 57. f5 {[%clk 0:00:05.3]} 57... a4 {[%clk
0:00:05.8]} 58. Kf7 {[%clk 0:00:05.7]} 58... Nxe7 {[%clk 0:00:05.6]} 59. Bxe7
{[%clk 0:00:04.4]} 59... h4 {[%clk 0:00:06.1]} 60. Rh2 {[%clk 0:00:03.4]} 60...
Rf4 {[%clk 0:00:05.3]} 61. f6 {[%clk 0:00:03.1]} 61... Kc4 {[%clk 0:00:03.7]}
62. Ke8 {[%clk 0:00:03.5]} 62... Kb3 {[%clk 0:00:03.1]} 63. f7 {[%clk
0:00:03.9]} 63... a3 {[%clk 0:00:03.2]} 64. Bxa3 {[%clk 0:00:01.7]} 64... Kxa3
{[%clk 0:00:02.2]} 65. f8=Q+ {[%clk 0:00:02.2]} 65... Rxf8+ {[%clk 0:00:01.4]}
66. Kxf8 {[%clk 0:00:03.1]} 66... Kb3 {[%clk 0:00:02.1]} 67. Rh3+ {[%clk
0:00:04]} 67... Kc4 {[%clk 0:00:02.4]} 68. Rxh4+ {[%clk 0:00:04.9]} 68... Kd5
{[%clk 0:00:03.3]} 69. Rg4 {[%clk 0:00:04.2]} 69... Ke5 {[%clk 0:00:04.2]} 70.
Rg7 {[%clk 0:00:04.5]} 70... Kf5 {[%clk 0:00:05.1]} 71. Rf7+ {[%clk 0:00:04.7]}
71... Ke6 {[%clk 0:00:05.6]} 72. Rf2 {[%clk 0:00:03.8]} 72... Ke5 {[%clk
0:00:05.9]} 73. Kg7 {[%clk 0:00:04.2]} 73... Ke4 {[%clk 0:00:06.5]} 74. Rf6
{[%clk 0:00:04.4]} 74... Ke5 {[%clk 0:00:06.9]} 75. Kg6 {[%clk 0:00:05.3]} 75...
Kd5 {[%clk 0:00:07.5]} 76. Kf5 {[%clk 0:00:05.6]} 76... Kd4 {[%clk 0:00:07.8]}
77. Re6 {[%clk 0:00:05.8]} 77... Kd5 {[%clk 0:00:08.4]} 1-0

[Event "*** Titled Tuesday Blitz"]
[Site "Chess.com"]
[Date "2020.12.29"]
[Round "4"]
[White "annamaja"]
[Black "Moon_stone123"]
[Result "1-0"]
[WhiteElo "2298"]
[BlackElo "2434"]
[TimeControl "180+1"]
[EndTime "10:40:40 PST"]
[Termination "annamaja won by resignation"]

1. e4 {[%clk 0:03:00.9]} 1... c5 {[%clk 0:02:59.3]} 2. Nf3 {[%clk 0:03:00.6]}
2... d6 {[%clk 0:02:58.9]} 3. d4 {[%clk 0:03:01.1]} 3... cxd4 {[%clk 0:02:59.8]}
4. Nxd4 {[%clk 0:03:02]} 4... Nf6 {[%clk 0:02:59.3]} 5. Nc3 {[%clk 0:03:02.6]}
5... g6 {[%clk 0:02:59]} 6. Be3 {[%clk 0:02:57.6]} 6... Bg7 {[%clk 0:02:58.1]}
7. Be2 {[%clk 0:02:57.4]} 7... Nc6 {[%clk 0:02:57.7]} 8. O-O {[%clk 0:02:56.5]}
8... O-O {[%clk 0:02:57.8]} 9. Kh1 {[%clk 0:02:55.2]} 9... d5 {[%clk 0:02:56.8]}
10. Nxc6 {[%clk 0:02:53.2]} 10... bxc6 {[%clk 0:02:55.4]} 11. exd5 {[%clk
0:02:53.8]} 11... Nxd5 {[%clk 0:02:54.8]} 12. Nxd5 {[%clk 0:02:51.9]} 12... Qxd5
{[%clk 0:02:49.8]} 13. c3 {[%clk 0:02:50.7]} 13... Be6 {[%clk 0:02:39.2]} 14.
Bf3 {[%clk 0:02:45.6]} 14... Qxd1 {[%clk 0:02:38.2]} 15. Rfxd1 {[%clk
0:02:46.5]} 15... Rab8 {[%clk 0:02:24.7]} 16. b3 {[%clk 0:02:30.7]} 16... a5
{[%clk 0:02:16.5]} 17. Rac1 {[%clk 0:02:23.1]} 17... Rfc8 {[%clk 0:01:58.9]} 18.
Bc5 {[%clk 0:02:15.1]} 18... Bf6 {[%clk 0:01:58]} 19. Rc2 {[%clk 0:01:40]} 19...
Bf5 {[%clk 0:01:31.7]} 20. Re2 {[%clk 0:01:38.4]} 20... Be6 {[%clk 0:01:20.7]}
21. Bd4 {[%clk 0:01:04.2]} 21... Bxd4 {[%clk 0:01:11.9]} 22. Rxd4 {[%clk
0:01:05.1]} 22... c5 {[%clk 0:00:55.4]} 23. Ra4 {[%clk 0:00:57.2]} 23... c4
{[%clk 0:00:55.7]} 24. b4 {[%clk 0:00:19.5]} 24... axb4 {[%clk 0:00:55.2]} 25.
Rxb4 {[%clk 0:00:20.2]} 25... Rxb4 {[%clk 0:00:47.7]} 26. cxb4 {[%clk
0:00:21.1]} 26... c3 {[%clk 0:00:48.1]} 27. Be4 {[%clk 0:00:19.2]} 27... Rb8
{[%clk 0:00:41]} 28. a3 {[%clk 0:00:18.2]} 28... Bb3 {[%clk 0:00:38.3]} 29. Bc2
{[%clk 0:00:15.8]} 29... Be6 {[%clk 0:00:27.5]} 30. Re3 {[%clk 0:00:14.4]} 30...
Rc8 {[%clk 0:00:27.3]} 31. h3 {[%clk 0:00:14.3]} 31... Bf5 {[%clk 0:00:25.4]}
32. Re2 {[%clk 0:00:12.3]} 32... Ra8 {[%clk 0:00:21.5]} 33. Bxf5 {[%clk
0:00:07.6]} 33... gxf5 {[%clk 0:00:22.4]} 34. Rxe7 {[%clk 0:00:07.5]} 34... Rxa3
{[%clk 0:00:22.9]} 35. Rc7 {[%clk 0:00:08.1]} 35... Rb3 {[%clk 0:00:22.6]} 36.
b5 {[%clk 0:00:07.3]} 36... Kg7 {[%clk 0:00:21.6]} 37. Kh2 {[%clk 0:00:07.3]}
37... f4 {[%clk 0:00:18.4]} 38. b6 {[%clk 0:00:05.6]} 38... Rxb6 {[%clk
0:00:17.2]} 39. Rxc3 {[%clk 0:00:05.5]} 39... Kg6 {[%clk 0:00:17.7]} 40. Rf3
{[%clk 0:00:05.3]} 40... Kg5 {[%clk 0:00:17.4]} 41. Rc3 {[%clk 0:00:03]} 41...
f5 {[%clk 0:00:16.5]} 42. Rc7 {[%clk 0:00:02.9]} 42... h5 {[%clk 0:00:16.8]} 43.
Rg7+ {[%clk 0:00:02.9]} 43... Kf6 {[%clk 0:00:16.7]} 44. Rg8 {[%clk 0:00:03.5]}
44... Rb2 {[%clk 0:00:16.2]} 45. f3 {[%clk 0:00:02.8]} 45... Ra2 {[%clk
0:00:14.5]} 46. h4 {[%clk 0:00:03.3]} 46... Ra1 {[%clk 0:00:13.8]} 47. Rh8
{[%clk 0:00:03.4]} 47... Kg6 {[%clk 0:00:13.7]} 48. Rb8 {[%clk 0:00:04.1]} 48...
Ra2 {[%clk 0:00:13.1]} 49. Rb4 {[%clk 0:00:04.2]} 49... Ra3 {[%clk 0:00:12]} 50.
Rxf4 {[%clk 0:00:04.8]} 50... Ra2 {[%clk 0:00:12.2]} 51. Rb4 {[%clk 0:00:05.4]}
51... Ra3 {[%clk 0:00:12.1]} 52. Kg3 {[%clk 0:00:05.7]} 52... Ra2 {[%clk
0:00:12.2]} 53. Rb6+ {[%clk 0:00:05.9]} 53... Kg7 {[%clk 0:00:12.3]} 54. Rc6
{[%clk 0:00:06.5]} 54... Ra4 {[%clk 0:00:11.6]} 55. Rd6 {[%clk 0:00:06.1]} 55...
Rb4 {[%clk 0:00:11.5]} 56. Rd5 {[%clk 0:00:06.5]} 56... Kf6 {[%clk 0:00:10.8]}
57. Rd8 {[%clk 0:00:06.2]} 57... Kg6 {[%clk 0:00:10.2]} 58. Rg8+ {[%clk
0:00:06.5]} 58... Kf7 {[%clk 0:00:10.1]} 59. Rg5 {[%clk 0:00:06.9]} 59... Kf6
{[%clk 0:00:05.2]} 60. Rxh5 {[%clk 0:00:07.3]} 60... Rb1 {[%clk 0:00:05.2]} 61.
Rh8 {[%clk 0:00:07.3]} 61... Rh1 {[%clk 0:00:05.2]} 62. Rf8+ {[%clk 0:00:06.7]}
62... Kg6 {[%clk 0:00:05.4]} 63. Rg8+ {[%clk 0:00:06.6]} 63... Kf6 {[%clk
0:00:05.6]} 64. Rd8 {[%clk 0:00:05.9]} 64... Kg6 {[%clk 0:00:05.7]} 65. Rd6+
{[%clk 0:00:05.8]} 65... Kf7 {[%clk 0:00:04.4]} 66. f4 {[%clk 0:00:05]} 66...
Rf1 {[%clk 0:00:04]} 67. h5 {[%clk 0:00:05.1]} 67... Rh1 {[%clk 0:00:04]} 68. h6
{[%clk 0:00:05.8]} 68... Ke7 {[%clk 0:00:04.5]} 69. Ra6 {[%clk 0:00:05.9]} 69...
Kf7 {[%clk 0:00:04.9]} 70. h7 {[%clk 0:00:05.6]} 70... Rxh7 {[%clk 0:00:03.1]}
71. Ra7+ {[%clk 0:00:06.1]} 71... Kg8 {[%clk 0:00:03.6]} 72. Rxh7 {[%clk
0:00:06.6]} 72... Kxh7 {[%clk 0:00:04.5]} 73. Kf3 {[%clk 0:00:05.9]} 73... Kg6
{[%clk 0:00:04.5]} 74. Ke3 {[%clk 0:00:06.4]} 74... Kh5 {[%clk 0:00:05]} 75. Kd4
{[%clk 0:00:06.4]} 75... Kg4 {[%clk 0:00:05.4]} 76. Ke5 {[%clk 0:00:06.7]} 76...
Kg3 {[%clk 0:00:05]} 77. Kxf5 {[%clk 0:00:07.6]} 77... Kxg2 {[%clk 0:00:05.3]}
78. Kg5 {[%clk 0:00:08.3]} 78... Kg3 {[%clk 0:00:06.2]} 79. f5 {[%clk
0:00:09.2]} 79... Kf3 {[%clk 0:00:07]} 80. f6 {[%clk 0:00:10.1]} 80... Ke4
{[%clk 0:00:07.8]} 81. f7 {[%clk 0:00:11]} 81... Ke5 {[%clk 0:00:08.5]} 82. f8=Q
{[%clk 0:00:11.9]} 1-0

[Event "*** Titled Tuesday Blitz"]
[Site "Chess.com"]
[Date "2020.12.29"]
[Round "4"]
[White "EugeneRougon"]
[Black "KononenkoD"]
[Result "1-0"]
[WhiteElo "2758"]
[BlackElo "2462"]
[TimeControl "180+1"]
[EndTime "10:40:41 PST"]
[Termination "EugeneRougon won by checkmate"]

1. e4 {[%clk 0:03:00.9]} 1... c6 {[%clk 0:03:00]} 2. d4 {[%clk 0:03:00.7]} 2...
d5 {[%clk 0:03:00.9]} 3. e5 {[%clk 0:02:59.3]} 3... Bf5 {[%clk 0:03:00.3]} 4.
Nf3 {[%clk 0:02:59.5]} 4... e6 {[%clk 0:03:00.4]} 5. Be2 {[%clk 0:02:59.7]} 5...
Ne7 {[%clk 0:02:59.4]} 6. O-O {[%clk 0:02:57.5]} 6... c5 {[%clk 0:02:59.8]} 7.
c4 {[%clk 0:02:53.8]} 7... Nbc6 {[%clk 0:03:00]} 8. dxc5 {[%clk 0:02:48.4]} 8...
d4 {[%clk 0:02:46.3]} 9. Qa4 {[%clk 0:02:28.8]} 9... d3 {[%clk 0:02:40.6]} 10.
Rd1 {[%clk 0:02:07.3]} 10... Ng6 {[%clk 0:02:39.1]} 11. Be3 {[%clk 0:01:39.7]}
11... Qa5 {[%clk 0:02:34.7]} 12. Qxa5 {[%clk 0:01:35.4]} 12... Nxa5 {[%clk
0:02:35.6]} 13. Bxd3 {[%clk 0:01:33.6]} 13... Bxd3 {[%clk 0:02:35.7]} 14. Rxd3
{[%clk 0:01:34.5]} 14... Nxc4 {[%clk 0:02:35.8]} 15. Nbd2 {[%clk 0:01:08.9]}
15... Nxe3 {[%clk 0:02:31.2]} 16. Rxe3 {[%clk 0:01:09.8]} 16... Bxc5 {[%clk
0:02:31]} 17. Rc3 {[%clk 0:01:10.5]} 17... Bb6 {[%clk 0:02:13.6]} 18. Nc4 {[%clk
0:01:09.5]} 18... Kf8 {[%clk 0:02:12.5]} 19. Rd1 {[%clk 0:00:57.5]} 19... Rd8
{[%clk 0:02:05.9]} 20. Rxd8+ {[%clk 0:00:55.5]} 20... Bxd8 {[%clk 0:02:06.8]}
21. Nd6 {[%clk 0:00:56.4]} 21... Ne7 {[%clk 0:02:06.7]} 22. Nxb7 {[%clk
0:00:46.2]} 22... Ke8 {[%clk 0:02:04.5]} 23. Nd6+ {[%clk 0:00:39.1]} 23... Kd7
{[%clk 0:02:04.9]} 24. Nxf7 {[%clk 0:00:37.7]} 24... Rf8 {[%clk 0:02:05.3]} 25.
Nxd8 {[%clk 0:00:27.6]} 25... Rxd8 {[%clk 0:02:01.8]} 26. g3 {[%clk 0:00:25.5]}
26... Nd5 {[%clk 0:01:59.5]} 27. Rc2 {[%clk 0:00:25.8]} 27... Rb8 {[%clk
0:01:57.1]} 28. b3 {[%clk 0:00:25.8]} 28... Nb4 {[%clk 0:01:52.5]} 29. Rd2+
{[%clk 0:00:25.8]} 29... Ke7 {[%clk 0:01:52.9]} 30. Ng5 {[%clk 0:00:25.1]} 30...
h6 {[%clk 0:01:51.6]} 31. Ne4 {[%clk 0:00:25.4]} 31... Rc8 {[%clk 0:01:50]} 32.
f4 {[%clk 0:00:23.3]} 32... Rc1+ {[%clk 0:01:48.8]} 33. Kg2 {[%clk 0:00:23.6]}
33... Ra1 {[%clk 0:01:48.9]} 34. a4 {[%clk 0:00:20.5]} 34... Rb1 {[%clk
0:01:45.7]} 35. Nc5 {[%clk 0:00:20.7]} 35... Nd5 {[%clk 0:01:43.3]} 36. Kh3
{[%clk 0:00:16.8]} 36... g6 {[%clk 0:01:38.8]} 37. Rc2 {[%clk 0:00:14.8]} 37...
Nb4 {[%clk 0:01:23.1]} 38. Rc4 {[%clk 0:00:14.6]} 38... Nd5 {[%clk 0:01:22.5]}
39. a5 {[%clk 0:00:14.6]} 39... Rb2 {[%clk 0:01:20.3]} 40. Re4 {[%clk
0:00:11.4]} 40... Nc3 {[%clk 0:01:15.3]} 41. Re1 {[%clk 0:00:09.9]} 41... Nd5
{[%clk 0:01:14.5]} 42. a6 {[%clk 0:00:08.9]} 42... Rc2 {[%clk 0:01:12.7]} 43.
Ne4 {[%clk 0:00:08.9]} 43... Rb2 {[%clk 0:01:10.7]} 44. Nc5 {[%clk 0:00:07.2]}
44... Rc2 {[%clk 0:01:10.5]} 45. Ne4 {[%clk 0:00:06.9]} 45... Rb2 {[%clk
0:01:10.8]} 46. Rc1 {[%clk 0:00:05.7]} 46... Rxb3 {[%clk 0:01:09]} 47. Rc6
{[%clk 0:00:06]} 47... Rb6 {[%clk 0:00:54.5]} 48. Rxb6 {[%clk 0:00:06.2]} 48...
axb6 {[%clk 0:00:51]} 49. Nd6 {[%clk 0:00:05.3]} 49... Nc7 {[%clk 0:00:48]} 50.
Nc8+ {[%clk 0:00:04.8]} 50... Kd8 {[%clk 0:00:44.9]} 51. Nxb6 {[%clk 0:00:05.7]}
51... Nxa6 {[%clk 0:00:45.2]} 52. Nc4 {[%clk 0:00:06.1]} 52... Ke7 {[%clk
0:00:45]} 53. Kg2 {[%clk 0:00:06.5]} 53... Nc5 {[%clk 0:00:45.1]} 54. Kf3 {[%clk
0:00:07]} 54... Kd7 {[%clk 0:00:45.4]} 55. Nd6 {[%clk 0:00:07.6]} 55... Ke7
{[%clk 0:00:43.5]} 56. Ne4 {[%clk 0:00:08.1]} 56... Nd7 {[%clk 0:00:37.9]} 57.
Nf2 {[%clk 0:00:08.6]} 57... Nb6 {[%clk 0:00:37.4]} 58. Ng4 {[%clk 0:00:08.3]}
58... h5 {[%clk 0:00:36.8]} 59. Ne3 {[%clk 0:00:08.7]} 59... Kf7 {[%clk
0:00:35.4]} 60. Ng2 {[%clk 0:00:08.7]} 60... Nd5 {[%clk 0:00:34.6]} 61. Nh4
{[%clk 0:00:09.1]} 61... Nc3 {[%clk 0:00:34.1]} 62. Ke3 {[%clk 0:00:09]} 62...
Nd5+ {[%clk 0:00:33.6]} 63. Kd4 {[%clk 0:00:09.5]} 63... Nb4 {[%clk 0:00:33.8]}
64. Nf3 {[%clk 0:00:09.8]} 64... Nc2+ {[%clk 0:00:33.7]} 65. Kc5 {[%clk
0:00:09.9]} 65... Ne3 {[%clk 0:00:33.8]} 66. Kd6 {[%clk 0:00:10.2]} 66... Nf5+
{[%clk 0:00:33.6]} 67. Kd7 {[%clk 0:00:10.5]} 67... Ne3 {[%clk 0:00:31.3]} 68.
Ng5+ {[%clk 0:00:10.7]} 68... Kg8 {[%clk 0:00:31]} 69. Kxe6 {[%clk 0:00:10.4]}
69... Nf1 {[%clk 0:00:31.4]} 70. Nf3 {[%clk 0:00:10]} 70... Kf8 {[%clk
0:00:32.3]} 71. Kf6 {[%clk 0:00:10.1]} 71... Ne3 {[%clk 0:00:30.8]} 72. Kxg6
{[%clk 0:00:10.2]} 72... Nd5 {[%clk 0:00:31.6]} 73. Kxh5 {[%clk 0:00:10.1]}
73... Ne7 {[%clk 0:00:32.5]} 74. g4 {[%clk 0:00:09.7]} 74... Kg7 {[%clk
0:00:33.4]} 75. f5 {[%clk 0:00:09.7]} 75... Kh7 {[%clk 0:00:34.3]} 76. Ng5+
{[%clk 0:00:09.7]} 76... Kg8 {[%clk 0:00:33.2]} 77. f6 {[%clk 0:00:10.2]} 77...
Nd5 {[%clk 0:00:33.3]} 78. Kg6 {[%clk 0:00:10.3]} 78... Kh8 {[%clk 0:00:31]} 79.
e6 {[%clk 0:00:09.4]} 79... Nf4+ {[%clk 0:00:29.9]} 80. Kf5 {[%clk 0:00:08.5]}
80... Nd5 {[%clk 0:00:30.2]} 81. e7 {[%clk 0:00:08.1]} 81... Nxe7+ {[%clk
0:00:29.9]} 82. fxe7 {[%clk 0:00:08.2]} 82... Kg7 {[%clk 0:00:30.8]} 83. h4
{[%clk 0:00:07.1]} 83... Kh6 {[%clk 0:00:31.7]} 84. e8=Q {[%clk 0:00:06.5]}
84... Kg7 {[%clk 0:00:31.6]} 85. Qf7+ {[%clk 0:00:07]} 85... Kh6 {[%clk
0:00:32.5]} 86. Qh7# {[%clk 0:00:07.9]} 1-0